{"text_format":"1","workbook":"xlsx","n_sheets":8,"sheets":["Запуск","Статусы","Список оборудования","КПУ EBS","ДП","ТРП","ТРПШ","ТРПП"],"not_rendered":{"charts":0,"images":0,"macros":0,"external_links":0,"defined_names":1,"comments":0,"pivot_tables":0},"unopened":[],"bounds":{"document_bytes":16777216,"sheet_cells":100000,"rows_first":2000,"rows_last":500,"rows_between":2000,"halvings":0,"cell_chars":16384,"cell_head_chars":4096},"cells_cut":0,"cells_raw":0,"read":"whole","date_system":"1900"}

{"sheet":"Запуск","index":0,"n_rows":43,"n_cols":7,"rows_kept":43,"cut":false,"hidden":false,"merged":[]}
["Оборудование, шифр","Количество оборудования к запуску","Текущая дата"]
["тр",null,{"$f":"NOW()","v":"2024-07-23T17:04:44.140"}]
[null,null,null,null,"Подготовка"]
[{"$f":"ТаблСписок_шифров_оборудования[[#This Row],[Список шифров оборудовния]]","v":"КПУ EBS"}]
[{"$f":"ТаблСписок_шифров_оборудования[[#This Row],[Список шифров оборудовния]]","v":"ДП"}]
[{"$f":"ТаблСписок_шифров_оборудования[[#This Row],[Список шифров оборудовния]]","v":"ТРП"}]
[{"$f":"ТаблСписок_шифров_оборудования[[#This Row],[Список шифров оборудовния]]","v":"ТРПШ"}]
[{"$f":"ТаблСписок_шифров_оборудования[[#This Row],[Список шифров оборудовния]]","v":"ТРПП"}]
[{"$f":"ТаблСписок_шифров_оборудования[[#This Row],[Список шифров оборудовния]]","v":{"$error":"#VALUE!"}}]
[{"$f":"ТаблСписок_шифров_оборудования[[#This Row],[Список шифров оборудовния]]","v":{"$error":"#VALUE!"}}]
[{"$f":"ТаблСписок_шифров_оборудования[[#This Row],[Список шифров оборудовния]]","v":{"$error":"#VALUE!"}}]
[]
[]
[]
[]
[]
[]
[]
["Шифр детали или СБ","Наименование детали или СБ","Количество ДСЕ в спецификации","Количество ДСЕ к запуску","Статус запуска ДСЕ","Остаток ДСЕ на складе","Количество запущенных в производство ДСЕ"]
[null,null,null,{"$f":"#REF!*ТаблВспомогалка[[#This Row],[Количество ДСЕ в спецификации]]","v":{"$error":"#REF!"}}]
[null,null,null,{"$f":"#REF!*ТаблВспомогалка[[#This Row],[Количество ДСЕ в спецификации]]","v":{"$error":"#REF!"}}]
[null,null,null,{"$f":"#REF!*ТаблВспомогалка[[#This Row],[Количество ДСЕ в спецификации]]","v":{"$error":"#REF!"}}]
[null,null,null,{"$f":"#REF!*ТаблВспомогалка[[#This Row],[Количество ДСЕ в спецификации]]","v":{"$error":"#REF!"}}]
[null,null,null,{"$f":"#REF!*ТаблВспомогалка[[#This Row],[Количество ДСЕ в спецификации]]","v":{"$error":"#REF!"}}]
[null,null,null,{"$f":"#REF!*ТаблВспомогалка[[#This Row],[Количество ДСЕ в спецификации]]","v":{"$error":"#REF!"}}]
[null,null,null,{"$f":"#REF!*ТаблВспомогалка[[#This Row],[Количество ДСЕ в спецификации]]","v":{"$error":"#REF!"}}]
[null,null,null,{"$f":"#REF!*ТаблВспомогалка[[#This Row],[Количество ДСЕ в спецификации]]","v":{"$error":"#REF!"}}]
[null,null,null,{"$f":"#REF!*ТаблВспомогалка[[#This Row],[Количество ДСЕ в спецификации]]","v":{"$error":"#REF!"}}]
[null,null,null,{"$f":"#REF!*ТаблВспомогалка[[#This Row],[Количество ДСЕ в спецификации]]","v":{"$error":"#REF!"}}]
[null,null,null,{"$f":"#REF!*ТаблВспомогалка[[#This Row],[Количество ДСЕ в спецификации]]","v":{"$error":"#REF!"}}]
[null,null,null,{"$f":"#REF!*ТаблВспомогалка[[#This Row],[Количество ДСЕ в спецификации]]","v":{"$error":"#REF!"}}]
[null,null,null,{"$f":"#REF!*ТаблВспомогалка[[#This Row],[Количество ДСЕ в спецификации]]","v":{"$error":"#REF!"}}]
[null,null,null,{"$f":"#REF!*ТаблВспомогалка[[#This Row],[Количество ДСЕ в спецификации]]","v":{"$error":"#REF!"}}]
[null,null,null,{"$f":"#REF!*ТаблВспомогалка[[#This Row],[Количество ДСЕ в спецификации]]","v":{"$error":"#REF!"}}]
[null,null,null,{"$f":"#REF!*ТаблВспомогалка[[#This Row],[Количество ДСЕ в спецификации]]","v":{"$error":"#REF!"}}]
[null,null,null,{"$f":"#REF!*ТаблВспомогалка[[#This Row],[Количество ДСЕ в спецификации]]","v":{"$error":"#REF!"}}]
[null,null,null,{"$f":"#REF!*ТаблВспомогалка[[#This Row],[Количество ДСЕ в спецификации]]","v":{"$error":"#REF!"}}]
[null,null,null,{"$f":"#REF!*ТаблВспомогалка[[#This Row],[Количество ДСЕ в спецификации]]","v":{"$error":"#REF!"}}]
[null,null,null,{"$f":"#REF!*ТаблВспомогалка[[#This Row],[Количество ДСЕ в спецификации]]","v":{"$error":"#REF!"}}]
[null,null,null,{"$f":"#REF!*ТаблВспомогалка[[#This Row],[Количество ДСЕ в спецификации]]","v":{"$error":"#REF!"}}]
[null,null,null,{"$f":"#REF!*ТаблВспомогалка[[#This Row],[Количество ДСЕ в спецификации]]","v":{"$error":"#REF!"}}]
[null,null,null,{"$f":"#REF!*ТаблВспомогалка[[#This Row],[Количество ДСЕ в спецификации]]","v":{"$error":"#REF!"}}]
[null,null,null,{"$f":"#REF!*ТаблВспомогалка[[#This Row],[Количество ДСЕ в спецификации]]","v":{"$error":"#REF!"}}]

{"sheet":"Статусы","index":1,"n_rows":9,"n_cols":1,"rows_kept":9,"cut":false,"hidden":true,"merged":[]}
["Статусы"]
["На запуске в КБ"]
["На запуске МУ"]
["Изготовление на МУ"]
["Сдано на склад ДСЕ"]
["На участке сборки"]
["Установка электрики и автоматики"]
["Испытания"]
["Упаковано"]

{"sheet":"Список оборудования","index":2,"n_rows":46,"n_cols":2,"rows_kept":46,"cut":false,"hidden":true,"merged":[]}
["Список шифров оборудовния","Список названий оборудовния"]
[]
[]
[{"$f":"IFERROR(INDEX(Оглавление,ROW()),\"\")","v":"КПУ EBS"},"Длинная печь(разогрев преформы)"]
[{"$f":"IFERROR(INDEX(Оглавление,ROW()),\"\")","v":"ДП"},"Автомат выдува"]
[{"$f":"IFERROR(INDEX(Оглавление,ROW()),\"\")","v":"ТРП"},"Автоматический группиратор бутылок"]
[{"$f":"IFERROR(INDEX(Оглавление,ROW()),\"\")","v":"ТРПШ"},"Автоматический группиратор бутылок"]
[{"$f":"IFERROR(INDEX(Оглавление,ROW()),\"\")","v":"ТРПП"},"Автоматический группиратор бутылок"]
[{"$f":"IFERROR(INDEX(Оглавление,ROW()),\"\")","v":""}]
[{"$f":"IFERROR(INDEX(Оглавление,ROW()),\"\")","v":""}]
[{"$f":"IFERROR(INDEX(Оглавление,ROW()),\"\")","v":""}]
[{"$f":"IFERROR(INDEX(Оглавление,ROW()),\"\")","v":""}]
[{"$f":"IFERROR(INDEX(Оглавление,ROW()),\"\")","v":""}]
[{"$f":"IFERROR(INDEX(Оглавление,ROW()),\"\")","v":""}]
[{"$f":"IFERROR(INDEX(Оглавление,ROW()),\"\")","v":""}]
[{"$f":"IFERROR(INDEX(Оглавление,ROW()),\"\")","v":""}]
[{"$f":"IFERROR(INDEX(Оглавление,ROW()),\"\")","v":""}]
[{"$f":"IFERROR(INDEX(Оглавление,ROW()),\"\")","v":""}]
[{"$f":"IFERROR(INDEX(Оглавление,ROW()),\"\")","v":""}]
[{"$f":"IFERROR(INDEX(Оглавление,ROW()),\"\")","v":""}]
[{"$f":"IFERROR(INDEX(Оглавление,ROW()),\"\")","v":""}]
[{"$f":"IFERROR(INDEX(Оглавление,ROW()),\"\")","v":""}]
[{"$f":"IFERROR(INDEX(Оглавление,ROW()),\"\")","v":""}]
[{"$f":"IFERROR(INDEX(Оглавление,ROW()),\"\")","v":""}]
[{"$f":"IFERROR(INDEX(Оглавление,ROW()),\"\")","v":""}]
[{"$f":"IFERROR(INDEX(Оглавление,ROW()),\"\")","v":""}]
[{"$f":"IFERROR(INDEX(Оглавление,ROW()),\"\")","v":""}]
[{"$f":"IFERROR(INDEX(Оглавление,ROW()),\"\")","v":""}]
[{"$f":"IFERROR(INDEX(Оглавление,ROW()),\"\")","v":""}]
[{"$f":"IFERROR(INDEX(Оглавление,ROW()),\"\")","v":""}]
[{"$f":"IFERROR(INDEX(Оглавление,ROW()),\"\")","v":""}]
[{"$f":"IFERROR(INDEX(Оглавление,ROW()),\"\")","v":""}]
[{"$f":"IFERROR(INDEX(Оглавление,ROW()),\"\")","v":""}]
[{"$f":"IFERROR(INDEX(Оглавление,ROW()),\"\")","v":""}]
[{"$f":"IFERROR(INDEX(Оглавление,ROW()),\"\")","v":""}]
[{"$f":"IFERROR(INDEX(Оглавление,ROW()),\"\")","v":""}]
[{"$f":"IFERROR(INDEX(Оглавление,ROW()),\"\")","v":""}]
[{"$f":"IFERROR(INDEX(Оглавление,ROW()),\"\")","v":""}]
[{"$f":"IFERROR(INDEX(Оглавление,ROW()),\"\")","v":""}]
[]
[{"$f":"IFERROR(INDEX(Оглавление,ROW()),\"\")","v":""}]
[{"$f":"IFERROR(INDEX(Оглавление,ROW()),\"\")","v":""}]
[{"$f":"IFERROR(INDEX(Оглавление,ROW()),\"\")","v":""}]
[{"$f":"IFERROR(INDEX(Оглавление,ROW()),\"\")","v":""}]
[{"$f":"IFERROR(INDEX(Оглавление,ROW()),\"\")","v":""}]
[{"$f":"IFERROR(INDEX(Оглавление,ROW()),\"\")","v":""}]

{"sheet":"КПУ EBS","index":3,"n_rows":12,"n_cols":25,"rows_kept":12,"cut":false,"hidden":false,"merged":[]}
["Шифр детали или СБ","Наименование детали или СБ","количество","Порядок запуска","Вырубка","Ленточнопильный","Гидрообразив","Лазер","Токарный","Токарный с ЧПУ","Фрезерный","Фрезерный с ЧПУ","Общее время","Расточка","Портальный фрезерный","Сварка","Шлифовальный","Зачистка","ОТК","Получение со склада","Сборка","Гибка","Упаковка, час","Сверловка","Резьба"]
[]
["EBС.01.000","Кронштейн пушки",1,null,null,null,null,null,null,null,null,null,null,null,null,null,null,null,null,null,null,null,12]
["ЕВС.01.001","Скоба",1]
["EBС.00.001","Кронштейн",1]
["EBС.00.004","Грибок",3,null,null,null,null,null,0.17,null,0.02,null,0.2,null,null,null,null,null,null,null,null,null,null,0.1,0.1]
["EBС.00.005","Полка",1]
["EBС.00.006","Держатель",2,null,null,0.05,null,null,0.25,null,0.4,null,1.1000000000000001,0.25,null,null,null,null,null,null,null,null,null,0.2,0.2]
["ЕБС.00.007","Пластина",2]
["ЕВС.01.002","Трубка 16х1.5 08X18H10 L=800",1]
["EBС.00.002","Труба 48.3х1.5 08X18H10 L=780",2]
["EBС.00.003","Труба 42.4х1.5 08X18H10 L=315",1]

{"sheet":"ДП","index":4,"n_rows":12,"n_cols":25,"rows_kept":12,"cut":false,"hidden":false,"merged":[]}
["Шифр детали или СБ","Наименование детали или СБ","количество","Порядок запуска","Вырубка","Ленточнопильный","Гидрообразив","Лазер","Токарный","Токарный с ЧПУ","Фрезерный","Фрезерный с ЧПУ","Общее время","Расточка","Портальный фрезерный","Сварка","Шлифовальный","Зачистка","ОТК","Получение со склада","Сборка","Гибка","Упаковка, час","Сверловка","Резьба"]
[]
["EBС.01.000","Кронштейн пушки",1,null,null,null,null,null,null,null,null,null,null,null,null,null,null,null,null,null,null,null,12]
["ЕВС.01.001","Скоба",1]
["EBС.00.001","Кронштейн",1]
["EBС.00.004","Грибок",3,null,null,null,null,null,0.17,null,0.02,null,0.2,null,null,null,null,null,null,null,null,null,null,0.1,0.1]
["EBС.00.005","Полка",1]
["EBС.00.006","Держатель",2,null,null,0.05,null,null,0.25,null,0.4,null,1.1000000000000001,0.25,null,null,null,null,null,null,null,null,null,0.2,0.2]
["ЕБС.00.007","Пластина",2]
["ЕВС.01.002","Трубка 16х1.5 08X18H10 L=800",1]
["EBС.00.002","Труба 48.3х1.5 08X18H10 L=780",2]
["EBС.00.003","Труба 42.4х1.5 08X18H10 L=315",1]

{"sheet":"ТРП","index":5,"n_rows":12,"n_cols":25,"rows_kept":12,"cut":false,"hidden":false,"merged":[]}
["Шифр детали или СБ","Наименование детали или СБ","количество","Порядок запуска","Вырубка","Ленточнопильный","Гидрообразив","Лазер","Токарный","Токарный с ЧПУ","Фрезерный","Фрезерный с ЧПУ","Общее время","Расточка","Портальный фрезерный","Сварка","Шлифовальный","Зачистка","ОТК","Получение со склада","Сборка","Гибка","Упаковка, час","Сверловка","Резьба"]
[]
["EBС.01.000","Кронштейн пушки",1,null,null,null,null,null,null,null,null,null,null,null,null,null,null,null,null,null,null,null,12]
["ЕВС.01.001","Скоба",1]
["EBС.00.001","Кронштейн",1]
["EBС.00.004","Грибок",3,null,null,null,null,null,0.17,null,0.02,null,0.2,null,null,null,null,null,null,null,null,null,null,0.1,0.1]
["EBС.00.005","Полка",1]
["EBС.00.006","Держатель",2,null,null,0.05,null,null,0.25,null,0.4,null,1.1000000000000001,0.25,null,null,null,null,null,null,null,null,null,0.2,0.2]
["ЕБС.00.007","Пластина",2]
["ЕВС.01.002","Трубка 16х1.5 08X18H10 L=800",1]
["EBС.00.002","Труба 48.3х1.5 08X18H10 L=780",2]
["EBС.00.003","Труба 42.4х1.5 08X18H10 L=315",1]

{"sheet":"ТРПШ","index":6,"n_rows":12,"n_cols":25,"rows_kept":12,"cut":false,"hidden":false,"merged":[]}
["Шифр детали или СБ","Наименование детали или СБ","количество","Порядок запуска","Вырубка","Ленточнопильный","Гидрообразив","Лазер","Токарный","Токарный с ЧПУ","Фрезерный","Фрезерный с ЧПУ","Общее время","Расточка","Портальный фрезерный","Сварка","Шлифовальный","Зачистка","ОТК","Получение со склада","Сборка","Гибка","Упаковка, час","Сверловка","Резьба"]
[]
["EBС.01.000","Кронштейн пушки",1,null,null,null,null,null,null,null,null,null,null,null,null,null,null,null,null,null,null,null,12]
["ЕВС.01.001","Скоба",1]
["EBС.00.001","Кронштейн",1]
["EBС.00.004","Грибок",3,null,null,null,null,null,0.17,null,0.02,null,0.2,null,null,null,null,null,null,null,null,null,null,0.1,0.1]
["EBС.00.005","Полка",1]
["EBС.00.006","Держатель",2,null,null,0.05,null,null,0.25,null,0.4,null,1.1000000000000001,0.25,null,null,null,null,null,null,null,null,null,0.2,0.2]
["ЕБС.00.007","Пластина",2]
["ЕВС.01.002","Трубка 16х1.5 08X18H10 L=800",1]
["EBС.00.002","Труба 48.3х1.5 08X18H10 L=780",2]
["EBС.00.003","Труба 42.4х1.5 08X18H10 L=315",1]

{"sheet":"ТРПП","index":7,"n_rows":12,"n_cols":25,"rows_kept":12,"cut":false,"hidden":false,"merged":[]}
["Шифр детали или СБ","Наименование детали или СБ","количество","Порядок запуска","Вырубка","Ленточнопильный","Гидрообразив","Лазер","Токарный","Токарный с ЧПУ","Фрезерный","Фрезерный с ЧПУ","Общее время","Расточка","Портальный фрезерный","Сварка","Шлифовальный","Зачистка","ОТК","Получение со склада","Сборка","Гибка","Упаковка, час","Сверловка","Резьба"]
[]
["EBС.01.000","Кронштейн пушки",1,null,null,null,null,null,null,null,null,null,null,null,null,null,null,null,null,null,null,null,12]
["ЕВС.01.001","Скоба",1]
["EBС.00.001","Кронштейн",1]
["EBС.00.004","Грибок",3,null,null,null,null,null,0.17,null,0.02,null,0.2,null,null,null,null,null,null,null,null,null,null,0.1,0.1]
["EBС.00.005","Полка",1]
["EBС.00.006","Держатель",2,null,null,0.05,null,null,0.25,null,0.4,null,1.1000000000000001,0.25,null,null,null,null,null,null,null,null,null,0.2,0.2]
["ЕБС.00.007","Пластина",2]
["ЕВС.01.002","Трубка 16х1.5 08X18H10 L=800",1]
["EBС.00.002","Труба 48.3х1.5 08X18H10 L=780",2]
["EBС.00.003","Труба 42.4х1.5 08X18H10 L=315",1]